fUSD/lending_fUSD_20250904
["ID","MTS","AMOUNT","RATE_DAILY","PERIOD"]
[383546787,1756986640990,-839.73,0.00021096,2]
[383546789,1756986640999,-332.84,0.00021096,2]
[383546791,1756986641009,-756.0,0.000211,2]
[383546793,1756986641019,-417.0,0.000211,2]
[383546795,1756986641028,-1224.0,0.00021131,2]
[383546797,1756986641037,-1224.0,0.00021131,2]
[383546799,1756986641047,-1224.0,0.00021131,2]
[383546802,1756986641057,-152.0,0.00021131,2]
[383546803,1756986641067,-152.0,0.00021131,2]
[383546805,1756986641076,-152.0,0.00021131,2]
[383546807,1756986641086,-152.0,0.00021131,2]
[383546810,1756986641096,-152.0,0.00021131,2]
[383546811,1756986641105,-166.0,0.00021131,2]
[383546813,1756986641115,-166.0,0.00021131,2]
[383546815,1756986641124,-166.0,0.00021131,2]
[383546818,1756986641134,-1224.0,0.00021131,2]
[383546820,1756986641144,-170.8451904,0.00021131,2]
[383546822,1756986641154,-152.0,0.00021131,2]
[383546824,1756986641164,-152.0,0.00021131,2]
[383546826,1756986641174,-152.0,0.00021131,2]
[383546828,1756986641183,-152.0,0.00021131,2]
[383546830,1756986641192,-152.0,0.00021131,2]
[383546832,1756986641202,-152.0,0.00021131,2]
[383546834,1756986641216,-152.0,0.00021131,2]
[383546836,1756986641225,-152.0,0.00021131,2]
[383546838,1756986641236,-152.0,0.00021131,2]
[383546840,1756986641246,-357.0,0.00021149,2]
[383546842,1756986641256,-357.0,0.00021164,2]
[383546844,1756986641265,-12537.23300996,0.00021166,2]
[383546846,1756986641279,-357.0,0.00021171,2]
[383546848,1756986641289,-500.0,0.00021212,2]
[383546850,1756986641299,-500.0,0.00021212,2]
[383546853,1756986641310,-567.0,0.00021212,2]
[383546855,1756986641321,-500.0,0.00021212,2]
[383546857,1756986641331,-152.0,0.00021228,2]
[383546859,1756986641341,-166.44,0.00021232,2]
[383546861,1756986641351,-277.35679052,0.0002126,2]
[383546863,1756986641361,-250.0,0.00021282,2]
[383546865,1756986641371,-500.0,0.00021282,2]
[383546867,1756986641380,-2000.0,0.00021282,3]
[383546869,1756986641391,-300.0,0.00021282,2]
[383546871,1756986641400,-300.0,0.00021282,2]
[383546873,1756986641410,-2500.0,0.00021282,2]
[383546875,1756986641420,-195.0,0.00021282,2]
[383546877,1756986641429,-250.0,0.00021306,2]
[383546879,1756986641443,-500.0,0.00021306,2]
[383546881,1756986641454,-300.0,0.00021306,2]
[383546883,1756986641464,-300.0,0.00021306,2]
[383546885,1756986641474,-195.0,0.00021306,2]
[383546887,1756986641484,-150.0,0.00021306,2]
[383546889,1756986641495,-571.48,0.00021306,2]
[383546891,1756986641508,-3010.21128815,0.00021334,2]
[383546894,1756986641518,-160.0,0.00021334,2]
[383546896,1756986641528,-514.64478986,0.00021334,2]
[383546898,1756986641538,-212.59699798,0.00021334,2]
[383546900,1756986641547,-160.0,0.00021334,2]
[383546901,1756986641557,-160.0,0.00021334,2]
[383546903,1756986641567,-3052.0,0.00021335,2]
[383546905,1756986641576,-1258.0,0.00021335,2]
[383546908,1756986641588,-2068.19,0.00021335,2]
[383546909,1756986641598,-924.0,0.00021335,2]
[383546911,1756986641607,-3464.653,0.00021335,2]
[383546913,1756986641617,-1334.873,0.00021335,2]
[383546915,1756986641627,-1577.0,0.00021335,2]
[383546918,1756986641636,-588.453,0.00021335,2]
[383546920,1756986641646,-624.723,0.00021335,2]
[383546922,1756986641656,-3252.825,0.00021335,2]
[383546924,1756986641666,-910.789,0.00021335,2]
[383546926,1756986641678,-1237.556,0.00021335,2]
[383546928,1756986641688,-825.0,0.00021335,2]
[383546930,1756986641698,-2241.0,0.00021335,2]
[383546932,1756986641707,-4163.0,0.00021335,2]
[383546934,1756986641716,-809.271,0.00021335,2]
[383546936,1756986641726,-6163.0,0.00021335,2]
[383546938,1756986641737,-21149.0,0.00021335,2]
[383546940,1756986641746,-464.87631999,0.00021346,2]
[383546942,1756986641755,-500.0,0.00021349,2]
[383546944,1756986641765,-500.0,0.00021349,2]
[383546946,1756986641775,-567.0,0.00021349,2]
[383546948,1756986641786,-500.0,0.00021349,2]
[383546950,1756986641796,-21573.06073564,0.00021361,2]
[383546952,1756986641805,-2200.0,0.00021369,2]
[383546954,1756986641815,-800.0,0.00021369,2]
[383546956,1756986641824,-542.0,0.0002137,2]
[383546958,1756986641833,-169.22,0.00021386,2]
[383546960,1756986641842,-420.0,0.00021432,2]
[383546962,1756986641852,-166.53,0.00021438,2]
[383546964,1756986641861,-500.0,0.00021486,2]
[383546966,1756986641870,-500.0,0.00021486,2]
[383546968,1756986641880,-567.0,0.00021486,2]
[383546970,1756986641890,-500.0,0.00021486,2]
[383546973,1756986641902,-12537.23300996,0.00021499,2]
[383546975,1756986641912,-217.91063492,0.000215,2]
[383546977,1756986641922,-151.87,0.00021511,2]
[383546979,1756986641932,-1000.0,0.00021521,2]
[383546981,1756986641941,-500.0,0.00021521,2]
[383546983,1756986641950,-1000.0,0.00021521,2]
[383546985,1756986641959,-1000.0,0.00021521,2]
[383546987,1756986641970,-1000.0,0.00021521,2]
[383546989,1756986641979,-1000.0,0.00021521,2]
[383546991,1756986641989,-506.90252258,0.00021521,2]
[383546993,1756986641999,-1000.0,0.00021521,2]
[383546995,1756986642009,-500.0,0.00021521,2]
[383546997,1756986642018,-512.07798509,0.00021521,2]
[383546999,1756986642028,-151.0,0.00021535,2]
[383547001,1756986642038,-1680.0,0.00021536,2]
[383547003,1756986642048,-490.0690767,0.00021586,2]
[383547005,1756986642058,-604.32853145,0.00021623,2]
[383547007,1756986642068,-500.0,0.00021623,2]
[383547010,1756986642079,-567.0,0.00021623,2]
[383547012,1756986642088,-500.0,0.00021623,2]
[383547014,1756986642098,-21573.06073564,0.00021667,2]
[383547016,1756986642107,-543.20280984,0.0002169,2]
[383547018,1756986642117,-8991.51,0.000217,2]
[383547020,1756986642126,-500.0,0.0002176,2]
[383547022,1756986642136,-567.0,0.0002176,2]
[383547024,1756986642145,-500.0,0.0002176,2]
[383547026,1756986642155,-492.49,0.00021766,2]
[383547028,1756986642164,-150.0,0.00021768,2]
[383547030,1756986642173,-249.071,0.00021768,2]
[383547032,1756986642183,-196.575,0.00021768,2]
[383547034,1756986642192,-196.142,0.00021768,2]
[383547036,1756986642202,-151.088,0.00021768,2]
[383547038,1756986642212,-150.0,0.00021768,2]
[383547040,1756986642222,-150.0,0.00021768,2]
[383547042,1756986642232,-150.0,0.00021768,2]
[383547044,1756986642241,-2600.0,0.000218,7]
[383547046,1756986642251,-238.25197267,0.00021803,2]
[383547048,1756986642260,-12537.23300996,0.00021833,2]
[383547050,1756986642270,-4713.0,0.00021838,2]
[383547052,1756986642283,-158.8,0.00021857,2]
[383547054,1756986642292,-3295.33800523,0.00021867,2]
[383547056,1756986642301,-500.0,0.0002187,2]
[383547057,1756986642310,-342.76,0.00021876,2]
[383547058,1756986642319,-500.0,0.00021897,2]
[383547059,1756986642328,-567.0,0.00021897,2]
[383547060,1756986642337,-500.0,0.00021897,2]
[383547061,1756986642347,-3500.0,0.000219,7]
[383547062,1756986642364,-2000.0,0.000219,2]
[383547063,1756986642376,-305.06428016,0.000219,2]
[383547064,1756986642386,-5994.34,0.000219,2]
[383547066,1756986642397,-4053.9222255,0.0002191,2]
[383547068,1756986642407,-2000.0,0.0002191,2]
[383547070,1756986642417,-300.0,0.00021916,2]
[383547072,1756986642428,-505.86347906,0.00021916,2]
[383547074,1756986642437,-300.0,0.00021916,2]
[383547076,1756986642446,-300.0,0.00021916,2]
[383547078,1756986642456,-1003.80727868,0.00021917,2]
[383547080,1756986642465,-125752.55041048,0.00021917,2]
[383547082,1756986642475,-402.34775627,0.00021917,2]
[383547084,1756986642485,-403.71783169,0.00021917,2]
[383547086,1756986642494,-400.0,0.00021917,2]
[383547088,1756986642504,-400.0,0.00021917,2]
[383547090,1756986642513,-400.0,0.00021917,2]
[383547092,1756986642523,-400.0,0.00021917,2]
[383547094,1756986642532,-402.56989809,0.00021917,2]
[383547096,1756986642542,-400.0,0.00021917,2]
[383547098,1756986642551,-232.16335,0.00021917,2]
[383547100,1756986642561,-159.517876,0.00021917,2]
[383547102,1756986642570,-402.30446437,0.00021917,2]
[383547104,1756986642580,-400.0,0.00021917,2]
[383547106,1756986642590,-400.0,0.00021917,2]
[383547108,1756986642599,-252.453048,0.00021917,2]
[383547110,1756986642609,-400.0,0.00021917,2]
[383547112,1756986642618,-400.0,0.00021917,2]
[383547114,1756986642628,-400.0,0.00021917,2]
[383547116,1756986642638,-400.0,0.00021917,2]
[383547118,1756986642648,-403.45384763,0.00021917,2]
[383547120,1756986642658,-400.0,0.00021917,2]
[383547122,1756986642667,-400.0,0.00021917,2]
[383547124,1756986642677,-400.0,0.00021917,2]
[383547126,1756986642686,-400.0,0.00021917,2]
[383547128,1756986642695,-400.0,0.00021917,2]
[383547130,1756986642705,-400.0,0.00021917,2]
[383547132,1756986642714,-400.0,0.00021917,2]
[383547134,1756986642723,-400.0,0.00021917,2]
[383547136,1756986642734,-400.0,0.00021917,2]
[383547138,1756986642743,-400.0,0.00021917,2]
[383547140,1756986642752,-400.0,0.00021917,2]
[383547142,1756986642762,-400.0,0.00021917,2]
[383547144,1756986642771,-400.0,0.00021917,2]
[383547146,1756986642781,-400.0,0.00021917,2]
[383547148,1756986642790,-400.0,0.00021917,2]
[383547151,1756986642800,-400.0,0.00021917,2]
[383547152,1756986642809,-400.0,0.00021917,2]
[383547154,1756986642820,-400.0,0.00021917,2]
[383547156,1756986642830,-400.0,0.00021917,2]
[383547158,1756986642839,-400.0,0.00021917,2]
[383547160,1756986642849,-400.0,0.00021917,2]
[383547162,1756986642858,-400.0,0.00021917,2]
[383547164,1756986642868,-400.0,0.00021917,2]
[383547167,1756986642877,-400.0,0.00021917,2]
[383547169,1756986642887,-400.0,0.00021917,2]
[383547171,1756986642897,-400.0,0.00021917,2]
[383547173,1756986642907,-400.0,0.00021917,2]
[383547175,1756986642916,-400.0,0.00021917,2]
[383547177,1756986642925,-400.0,0.00021917,2]
[383547179,1756986642934,-400.0,0.00021917,2]
[383547181,1756986642943,-400.0,0.00021917,2]
[383547219,1756986643257,-400.0,0.00021917,2]
[383547221,1756986643268,-400.0,0.00021917,2]
[383547223,1756986643282,-400.0,0.00021917,2]
[383547225,1756986643292,-400.0,0.00021917,2]
[383547227,1756986643302,-400.0,0.00021917,2]
[383547229,1756986643311,-459.89,0.00021917,2]
[383547231,1756986643322,-400.0,0.00021917,2]
[383547233,1756986643331,-400.0,0.00021917,2]
[383547235,1756986643344,-400.0,0.00021917,2]
[383547237,1756986643354,-400.0,0.00021917,2]
[383547239,1756986643364,-400.0,0.00021917,2]
[383547241,1756986643373,-414.63531385,0.00021917,2]
[383547243,1756986643383,-400.0,0.00021917,2]
[383547245,1756986643392,-400.0,0.00021917,2]
[383547247,1756986643403,-400.0,0.00021917,2]
[383547249,1756986643413,-400.0,0.00021917,2]
[383547251,1756986643422,-400.0,0.00021917,2]
[383547253,1756986643433,-400.0,0.00021917,2]
[383547255,1756986643443,-400.0,0.00021917,2]
[383547257,1756986643456,-400.0,0.00021917,2]
[383547259,1756986643466,-400.0,0.00021917,2]
[383547261,1756986643476,-400.0,0.00021917,2]
[383547263,1756986643485,-400.0,0.00021917,2]
[383547265,1756986643495,-400.0,0.00021917,2]
[383547268,1756986643505,-400.0,0.00021917,2]
[383547270,1756986643515,-400.0,0.00021917,2]
[383547272,1756986643525,-400.0,0.00021917,2]
[383547274,1756986643534,-400.0,0.00021917,2]
[383547276,1756986643544,-400.0,0.00021917,2]
[383547278,1756986643554,-412.30874637,0.00021917,2]
[383547280,1756986643564,-400.0,0.00021917,2]
[383547282,1756986643574,-400.0,0.00021917,2]
[383547284,1756986643583,-400.0,0.00021917,2]
[383547286,1756986643593,-403.2521124,0.00021917,2]
[383547288,1756986643604,-400.0,0.00021917,2]
[383547290,1756986643614,-400.0,0.00021917,2]
[383547292,1756986643623,-400.0,0.00021917,2]
[383547294,1756986643632,-400.0,0.00021917,2]
[383547296,1756986643642,-400.0,0.00021917,2]
[383547298,1756986643651,-400.0,0.00021917,2]
[383547300,1756986643660,-400.0,0.00021917,2]
[383547302,1756986643670,-403.49352411,0.00021917,2]
[383547304,1756986643679,-400.0,0.00021917,2]
[383547306,1756986643689,-400.0,0.00021917,2]
[383547308,1756986643698,-400.0,0.00021917,2]
[383547310,1756986643708,-400.0,0.00021917,2]
[383547312,1756986643717,-400.0,0.00021917,2]
[383547314,1756986643727,-400.0,0.00021917,2]
[383547316,1756986643736,-400.0,0.00021917,2]
[383547318,1756986643746,-400.0,0.00021917,2]
[383547320,1756986643755,-400.0,0.00021917,2]
[383547322,1756986643765,-400.0,0.00021917,2]
[383547324,1756986643775,-400.0,0.00021917,2]
[383547326,1756986643784,-400.0,0.00021917,2]
[383547328,1756986643794,-400.0,0.00021917,2]
[383547330,1756986643803,-402.91022107,0.00021917,2]
[383547332,1756986643813,-400.0,0.00021917,2]
[383547334,1756986643822,-400.0,0.00021917,2]
[383547336,1756986643832,-205.1963403,0.00021917,2]
[383547338,1756986643841,-400.0,0.00021917,2]
[383547340,1756986643851,-400.0,0.00021917,2]
[383547342,1756986643861,-175.669305,0.00021917,2]
[383547344,1756986643871,-400.0,0.00021917,2]
[383547346,1756986643882,-400.0,0.00021917,2]
[383547348,1756986643891,-400.0,0.00021917,2]
[383547349,1756986643900,-400.0,0.00021917,2]
[383547352,1756986643910,-400.0,0.00021917,2]
[383547354,1756986643920,-289.16765473,0.00021917,2]
[383547356,1756986643929,-400.0,0.00021917,2]
[383547358,1756986643939,-400.0,0.00021917,2]
[383547360,1756986643948,-400.0,0.00021917,2]
[383547362,1756986643958,-400.0,0.00021917,2]
[383547364,1756986643967,-406.10431565,0.00021917,2]
[383547365,1756986643977,-400.0,0.00021917,2]
[383547366,1756986643986,-400.0,0.00021917,2]
[383547367,1756986643996,-400.0,0.00021917,2]
[383547368,1756986644006,-400.0,0.00021917,2]
[383547369,1756986644015,-400.0,0.00021917,2]
[383547370,1756986644024,-400.0,0.00021917,2]
[383547371,1756986644034,-400.0,0.00021917,2]
[383547372,1756986644043,-400.0,0.00021917,2]
[383547373,1756986644052,-400.0,0.00021917,2]
[383547375,1756986644061,-400.0,0.00021917,2]
[383547377,1756986644070,-400.0,0.00021917,2]
[383547379,1756986644080,-400.0,0.00021917,2]
[383547381,1756986644089,-400.0,0.00021917,2]
[383547383,1756986644099,-400.0,0.00021917,2]
[383547385,1756986644109,-400.0,0.00021917,2]
[383547387,1756986644119,-514.08,0.00021917,2]
[383547389,1756986644129,-400.0,0.00021917,2]
[383547391,1756986644138,-400.0,0.00021917,2]
[383547393,1756986644147,-400.0,0.00021917,2]
[383547395,1756986644157,-400.0,0.00021917,2]
[383547397,1756986644166,-400.0,0.00021917,2]
[383547399,1756986644176,-400.0,0.00021917,2]
[383547401,1756986644185,-400.0,0.00021917,2]
[383547403,1756986644194,-400.0,0.00021917,2]
[383547405,1756986644204,-400.0,0.00021917,2]
[383547407,1756986644214,-400.0,0.00021917,2]
[383547409,1756986644224,-400.0,0.00021917,2]
[383547411,1756986644234,-400.0,0.00021917,2]
[383547413,1756986644243,-400.0,0.00021917,2]
[383547415,1756986644253,-400.0,0.00021917,2]
[383547417,1756986644262,-400.0,0.00021917,2]
[383547419,1756986644273,-400.0,0.00021917,2]
[383547421,1756986644285,-400.0,0.00021917,2]
[383547423,1756986644294,-400.0,0.00021917,2]
[383547425,1756986644303,-400.0,0.00021917,2]
[383547427,1756986644312,-400.0,0.00021917,2]
[383547429,1756986644322,-400.0,0.00021917,2]
[383547431,1756986644331,-405.74007487,0.00021917,2]
[383547433,1756986644340,-403.83121109,0.00021917,2]
[383547435,1756986644351,-402.69563569,0.00021917,2]
[383547437,1756986644362,-400.0,0.00021917,2]
[383547439,1756986644371,-400.0,0.00021917,2]
[383547441,1756986644381,-400.0,0.00021917,2]
[383547443,1756986644390,-400.0,0.00021917,2]
[383547445,1756986644399,-400.0,0.00021917,2]
[383547447,1756986644408,-400.0,0.00021917,2]
[383547449,1756986644418,-500.0,0.00021917,2]
[383547451,1756986644428,-500.0,0.00021917,2]
[383547453,1756986644438,-500.0,0.00021917,2]
[383547455,1756986644447,-500.0,0.00021917,2]
[383547457,1756986644457,-500.0,0.00021917,2]
[383547459,1756986644466,-500.0,0.00021917,2]
[383547461,1756986644475,-400.0,0.00021917,2]
[383547463,1756986644484,-217.37893633,0.00021917,2]
[383547465,1756986644498,-400.0,0.00021917,2]
[383547467,1756986644507,-400.0,0.00021917,2]
[383547469,1756986644516,-400.0,0.00021917,2]
[383547471,1756986644526,-400.0,0.00021917,2]
[383547473,1756986644535,-404.44651824,0.00021917,2]
[383547475,1756986644545,-400.0,0.00021917,2]
[383547477,1756986644554,-400.0,0.00021917,2]
[383547479,1756986644563,-400.0,0.00021917,2]
[383547481,1756986644572,-400.0,0.00021917,2]
[383547483,1756986644582,-400.0,0.00021917,2]
[383547485,1756986644591,-400.0,0.00021917,2]
[383547487,1756986644600,-400.0,0.00021917,2]
[383547489,1756986644609,-400.0,0.00021917,2]
[383547491,1756986644619,-400.0,0.00021917,2]
[383547493,1756986644628,-400.0,0.00021917,2]
[383547495,1756986644637,-400.0,0.00021917,2]
[383547497,1756986644646,-400.0,0.00021917,2]
[383547499,1756986644656,-452.84046253,0.00021917,2]
[383547501,1756986644665,-400.0,0.00021917,2]
[383547503,1756986644675,-400.0,0.00021917,2]
[383547505,1756986644684,-400.0,0.00021917,2]
[383547507,1756986644694,-400.0,0.00021917,2]
[383547509,1756986644703,-400.0,0.00021917,2]
[383547511,1756986644713,-400.0,0.00021917,2]
[383547513,1756986644722,-400.0,0.00021917,2]
[383547515,1756986644731,-400.0,0.00021917,2]
[383547517,1756986644742,-403.32747842,0.00021917,2]
[383547519,1756986644751,-400.0,0.00021917,2]
[383547521,1756986644761,-400.0,0.00021917,2]
[383547523,1756986644770,-400.0,0.00021917,2]
[383547525,1756986644780,-400.0,0.00021917,2]
[383547527,1756986644789,-400.0,0.00021917,2]
[383547529,1756986644799,-400.0,0.00021917,2]
[383547531,1756986644808,-400.0,0.00021917,2]
[383547534,1756986644820,-400.0,0.00021917,2]
[383547536,1756986644829,-400.0,0.00021917,2]
[383547538,1756986644839,-400.0,0.00021917,2]
[383547540,1756986644849,-400.0,0.00021917,2]
[383547541,1756986644859,-400.0,0.00021917,2]
[383547543,1756986644869,-405.12936933,0.00021917,2]
[383547545,1756986644878,-400.0,0.00021917,2]
[383547547,1756986644887,-404.84435552,0.00021917,2]
[383547549,1756986644897,-400.0,0.00021917,2]
[383547551,1756986644910,-400.0,0.00021917,2]
[383547553,1756986644920,-400.0,0.00021917,2]
[383547555,1756986644930,-400.0,0.00021917,2]
[383547557,1756986644941,-404.62268979,0.00021917,2]
[383547559,1756986644951,-400.0,0.00021917,2]
[383547561,1756986644961,-400.0,0.00021917,2]
[383547563,1756986644970,-400.0,0.00021917,2]
[383547565,1756986644979,-400.0,0.00021917,2]
[383547567,1756986644990,-400.0,0.00021917,2]
[383547569,1756986644999,-240.79545695,0.00021917,2]
[383547571,1756986645008,-400.0,0.00021917,2]
[383547573,1756986645018,-400.0,0.00021917,2]
[383547575,1756986645027,-400.0,0.00021917,2]
[383547577,1756986645036,-400.0,0.00021917,2]
[383547579,1756986645046,-400.0,0.00021917,2]
[383547581,1756986645055,-400.0,0.00021917,2]
[383547583,1756986645066,-400.0,0.00021917,2]
[383547585,1756986645075,-400.0,0.00021917,2]
[383547587,1756986645085,-400.0,0.00021917,2]
[383547589,1756986645094,-400.0,0.00021917,2]
[383547591,1756986645105,-400.0,0.00021917,2]
[383547594,1756986645115,-348.62144649,0.00021917,2]
[383547596,1756986645125,-495.85884043,0.00021917,2]
[383547598,1756986645135,-400.0,0.00021917,2]
[383547600,1756986645143,-400.0,0.00021917,2]
[383547601,1756986645153,-400.0,0.00021917,2]
[383547603,1756986645162,-400.0,0.00021917,2]
[383547605,1756986645172,-400.0,0.00021917,2]
[383547608,1756986645182,-402.97953865,0.00021917,2]
[383547609,1756986645191,-400.0,0.00021917,2]
[383547611,1756986645201,-400.0,0.00021917,2]
[383547613,1756986645210,-400.0,0.00021917,2]
[383547615,1756986645219,-400.0,0.00021917,2]
[383547617,1756986645228,-500.0,0.00021917,2]
[383547619,1756986645238,-500.0,0.00021917,2]
[383547621,1756986645247,-479.42389149,0.00021917,2]
[383547623,1756986645256,-500.0,0.00021917,2]
[383547625,1756986645265,-500.0,0.00021917,2]
[383547627,1756986645276,-500.0,0.00021917,2]
[383547629,1756986645286,-480.68838002,0.00021917,2]
[383547631,1756986645295,-400.0,0.00021917,2]
[383547633,1756986645304,-400.0,0.00021917,2]
[383547635,1756986645315,-413.21,0.00021917,2]
[383547637,1756986645325,-400.0,0.00021917,2]
[383547639,1756986645334,-400.0,0.00021917,2]
[383547641,1756986645343,-500.0,0.00021917,2]
[383547643,1756986645355,-500.0,0.00021917,2]
[383547645,1756986645366,-576.47124317,0.00021917,2]
[383547647,1756986645375,-400.0,0.00021917,2]
[383547649,1756986645385,-400.0,0.00021917,2]
[383547651,1756986645394,-400.0,0.00021917,2]
[383547653,1756986645403,-402.29438481,0.00021917,2]
[383547655,1756986645413,-400.0,0.00021917,2]
[383547657,1756986645422,-400.0,0.00021917,2]
[383547659,1756986645433,-400.0,0.00021917,2]
[383547662,1756986645444,-400.0,0.00021917,2]
[383547663,1756986645454,-400.0,0.00021917,2]
[383547665,1756986645464,-400.0,0.00021917,2]
[383547667,1756986645473,-400.0,0.00021917,2]
[383547669,1756986645484,-403.49674605,0.00021917,2]
[383547671,1756986645493,-402.25701815,0.00021917,2]
[383547673,1756986645503,-400.0,0.00021917,2]
[383547675,1756986645512,-400.0,0.00021917,2]
[383547677,1756986645521,-1327.71,0.00021917,2]
[383547679,1756986645531,-400.0,0.00021917,2]
[383547680,1756986645539,-400.0,0.00021917,2]
[383547681,1756986645548,-400.0,0.00021917,2]
[383547682,1756986645558,-400.0,0.00021917,2]
[383547683,1756986645567,-400.0,0.00021917,2]
[383547684,1756986645576,-400.0,0.00021917,2]
[383547685,1756986645584,-400.0,0.00021917,2]
[383547686,1756986645593,-400.0,0.00021917,2]
[383547687,1756986645602,-402.36319201,0.00021917,2]
[383547688,1756986645611,-400.0,0.00021917,2]
[383547690,1756986645621,-400.0,0.00021917,2]
[383547692,1756986645631,-456.81,0.00021917,2]
[383547694,1756986645641,-403.90738575,0.00021917,2]
[383547696,1756986645650,-403.3815362,0.00021917,2]
[383547698,1756986645659,-163.86199217,0.00021917,2]
[383547700,1756986645669,-400.0,0.00021917,2]
[383547702,1756986645679,-400.0,0.00021917,2]
[383547704,1756986645688,-1756.723,0.00021917,2]
[383547706,1756986645699,-194.787,0.00021917,2]
[383547708,1756986645710,-400.0,0.00021917,2]
[383547710,1756986645719,-400.0,0.00021917,2]
[383547712,1756986645729,-400.0,0.00021917,2]
[383547714,1756986645738,-401.91942752,0.00021917,2]
[383547717,1756986645749,-401.53854776,0.00021917,2]
[383547719,1756986645759,-170.24434586,0.00021917,2]
[383547720,1756986645770,-400.0,0.00021917,2]
[383547722,1756986645780,-400.0,0.00021917,2]
[383547724,1756986645790,-400.0,0.00021917,2]
[383547726,1756986645799,-400.0,0.00021917,2]
[383547729,1756986645813,-400.0,0.00021917,2]
[383547731,1756986645822,-403.43090985,0.00021917,2]
[383547733,1756986645832,-400.0,0.00021917,2]
[383547735,1756986645843,-400.0,0.00021917,2]
[383547737,1756986645852,-400.0,0.00021917,2]
[383547739,1756986645862,-400.0,0.00021917,2]
[383547741,1756986645871,-400.0,0.00021917,2]
[383547743,1756986645880,-400.0,0.00021917,2]
[383547744,1756986645890,-510.0005268,0.00021917,2]
[383547746,1756986645900,-400.0,0.00021917,2]
[383547748,1756986645909,-400.0,0.00021917,2]
[383547750,1756986645919,-400.0,0.00021917,2]
[383547752,1756986645928,-779.87,0.00021917,2]
[383547754,1756986645937,-400.0,0.00021917,2]
[383547756,1756986645947,-570.0,0.00021917,2]
[383547758,1756986645956,-400.0,0.00021917,2]
[383547760,1756986645966,-400.0,0.00021917,2]
[383547762,1756986645975,-400.0,0.00021917,2]
[383547764,1756986645984,-400.0,0.00021917,2]
[383547766,1756986645994,-400.0,0.00021917,2]
[383547768,1756986646004,-400.0,0.00021917,2]
[383547770,1756986646013,-400.0,0.00021917,2]
[383547772,1756986646022,-506.66719957,0.00021917,2]
[383547774,1756986646032,-411.73,0.00021917,2]
[383547776,1756986646041,-400.0,0.00021917,2]
[383547778,1756986646050,-400.0,0.00021917,2]
[383547780,1756986646059,-400.0,0.00021917,2]
[383547782,1756986646069,-400.0,0.00021917,2]
[383547784,1756986646078,-400.0,0.00021917,2]
[383547786,1756986646088,-403.19942185,0.00021917,2]
[383547788,1756986646098,-400.0,0.00021917,2]
[383547790,1756986646107,-400.0,0.00021917,2]
[383547792,1756986646116,-402.49497347,0.00021917,2]
[383547794,1756986646125,-400.0,0.00021917,2]
[383547796,1756986646136,-400.0,0.00021917,2]
[383547798,1756986646145,-400.0,0.00021917,2]
[383547800,1756986646155,-400.0,0.00021917,2]
[383547802,1756986646165,-400.0,0.00021917,2]